bitfinex/quotes_BTCUSD_20250723
["timestamp","ask_amount","ask_price","bid_price","bid_amount"]
[1753238624006,1.36609461,119230.0,119220.0,0.03589993]
[1753238624220,1.28161731,119230.0,119220.0,0.03589993]
[1753238625574,1.28461731,119230.0,119220.0,0.03589993]
[1753238625790,1.0597554,119230.0,119220.0,0.03589993]
[1753238625993,1.28461731,119230.0,119220.0,0.03589993]
[1753238626620,1.0597554,119230.0,119220.0,0.03589993]
[1753238626880,1.28461731,119230.0,119220.0,0.02079993]
[1753238627864,1.28461731,119230.0,119220.0,0.00429993]
[1753238628110,1.29300715,119230.0,119220.0,0.00429993]
[1753238628316,1.31797047,119230.0,119220.0,0.00429993]
[1753238628979,1.75794777,119230.0,119220.0,0.00429993]
[1753238629210,1.37444777,119230.0,119220.0,0.00429993]
[1753238629434,1.39961977,119230.0,119220.0,0.00429993]
[1753238629644,1.31514247,119230.0,119220.0,0.00429993]
[1753238630090,1.31414247,119230.0,119220.0,0.00329993]
[1753238630541,1.31614247,119230.0,119220.0,0.00100001]
[1753238630786,1.31614247,119230.0,119170.0,0.0004]
[1753238630787,0.00839052,119180.0,119170.0,0.0004]
[1753238631024,0.84724957,119180.0,119170.0,0.0004]
[1753238631255,0.98195214,119180.0,119170.0,0.0004]
[1753238631494,0.98235214,119180.0,119170.0,0.0004]
[1753238631721,0.98535214,119180.0,119170.0,0.0004]
[1753238631946,1.01049023,119180.0,119170.0,0.0004]
[1753238632175,1.10755214,119180.0,119170.0,0.00089079]
[1753238632622,1.50755214,119180.0,119170.0,0.00089079]
[1753238633076,1.50255214,119180.0,119170.0,0.00089079]
[1753238633296,0.53366772,119170.0,119160.0,0.0034]
[1753238633537,0.84516693,119170.0,119160.0,0.0034]
[1753238633754,0.84816693,119170.0,119160.0,0.0034]
[1753238634412,0.87332119,119170.0,119160.0,0.0034]
[1753238634969,1.12532119,119170.0,119160.0,0.0034]
[1753238635395,1.12732119,119170.0,119160.0,0.0044]
[1753238638471,1.12432119,119170.0,119160.0,0.0044]
[1753238639811,0.89945928,119170.0,119160.0,0.0044]
[1753238640027,1.12432119,119170.0,119160.0,0.0044]
[1753238641335,1.25864119,119170.0,119160.0,0.0044]
[1753238641549,1.26164119,119170.0,119160.0,0.0044]
[1753238643546,1.25864119,119170.0,119160.0,0.0044]
[1753238644196,1.25864119,119170.0,119160.0,0.0196]
[1753238644688,0.89729928,119170.0,119160.0,0.04062]
[1753238644928,0.55729928,119170.0,119160.0,0.04062]
[1753238646756,0.78432119,119170.0,119160.0,0.0355]
[1753238647849,0.55945928,119170.0,119160.0,0.0355]
[1753238648063,0.78432119,119170.0,119160.0,0.0355]
[1753238650264,0.78432119,119170.0,119160.0,0.04081]
[1753238651128,0.55945928,119170.0,119160.0,0.04081]
[1753238651350,0.78432119,119170.0,119160.0,0.04081]
[1753238652193,1.18432119,119170.0,119160.0,0.04081]
[1753238653958,0.95945928,119170.0,119160.0,0.04081]
[1753238654377,1.18432119,119170.0,119160.0,0.04081]
[1753238655257,0.47553348,119160.0,119150.0,0.0004]
[1753238655480,1.50372362,119160.0,119150.0,0.0004]
[1753238655690,1.50670362,119160.0,119150.0,0.0004]
[1753238656131,1.28184171,119160.0,119150.0,0.0004]
[1753238656588,1.28284171,119160.0,119150.0,0.0004]
[1753238657011,1.27986171,119160.0,119150.0,0.00352]
[1753238657236,1.28086171,119160.0,119150.0,0.03871]
[1753238657659,1.28286171,119160.0,119150.0,0.03652]
[1753238657868,1.29116543,119160.0,119150.0,0.03652]
[1753238658626,1.29414543,119160.0,119150.0,0.0014]
[1753238659041,1.54414543,119160.0,119150.0,0.0014]
[1753238659810,1.76900734,119160.0,119150.0,0.0014]
[1753238660487,1.78698482,119160.0,119150.0,0.0014]
[1753238660911,0.76695178,119150.0,119140.0,0.00231001]
[1753238661121,0.98840908,119150.0,119140.0,0.00231001]
[1753238661331,0.99138908,119150.0,119140.0,0.00231001]
[1753238661558,1.0093689,119150.0,119140.0,0.00231001]
[1753238661776,0.78450699,119150.0,119140.0,0.00231001]
[1753238662009,0.2,119070.0,119060.0,0.00839849]
[1753238662242,0.2,119070.0,119060.0,0.1952735]
[1753238662465,0.2,119070.0,119060.0,0.01065659]
[1753238662691,0.38476476,119070.0,119060.0,0.00531]
[1753238663132,0.20839785,119070.0,119060.0,0.17881164]
[1753238663342,0.24264299,119070.0,119060.0,0.14099]
[1753238663587,0.42740804,119070.0,119060.0,0.31749527]
[1753238663798,0.41261213,119070.0,119060.0,0.31749527]
[1753238664032,0.65521407,119070.0,119060.0,0.14111363]
[1753238664251,0.47884694,119070.0,119060.0,0.24421329]
[1753238664471,0.55492632,119070.0,119060.0,0.89907444]
[1753238664691,0.47044902,119070.0,119060.0,0.54429559]
[1753238664929,0.47044902,119070.0,119060.0,0.9077175]
[1753238665166,0.203,119070.0,119060.0,0.57579559]
[1753238665405,0.21139792,119070.0,119060.0,0.68059615]
[1753238665650,0.21979605,119070.0,119060.0,0.69739404]
[1753238665905,0.4045611,119070.0,119060.0,0.34059615]
[1753238666166,0.63776512,119070.0,119060.0,0.17261363]
[1753238666392,0.65521414,119070.0,119060.0,0.17281363]
[1753238666847,0.72233105,119070.0,119060.0,0.17281363]
[1753238667063,0.72233105,119070.0,119060.0,0.17250363]
[1753238667502,0.72233105,119070.0,119060.0,0.3488852]
[1753238667733,0.72233105,119070.0,119060.0,0.3520752]
[1753238667949,0.54596399,119070.0,119060.0,0.36887288]
[1753238668157,0.48724493,119070.0,119060.0,0.37727158]
[1753238668371,0.47884687,119070.0,119060.0,0.38567021]
[1753238668598,0.48724486,119070.0,119060.0,0.38567021]
[1753238669053,0.47884687,119070.0,119060.0,0.38567021]
[1753238669283,0.48724486,119070.0,119060.0,0.38567021]
[1753238669506,0.49564292,119070.0,119060.0,0.38567021]
[1753238669733,0.47884694,119070.0,119060.0,0.38567021]
[1753238670019,0.48724507,119070.0,119060.0,0.38567021]
[1753238670251,0.47884694,119070.0,119060.0,0.38567021]
[1753238670469,0.49564328,119070.0,119060.0,0.38567021]
[1753238670697,0.50404148,119070.0,119060.0,0.38567021]
[1753238671343,0.50404148,119070.0,119060.0,0.40497021]
[1753238671514,0.50404148,119070.0,119060.0,0.38567021]
[1753238671792,0.49564313,119070.0,119060.0,0.38567021]
[1753238671992,0.47884694,119070.0,119060.0,0.38567021]
[1753238672300,0.48724493,119070.0,119060.0,0.38567021]
[1753238672510,0.49564313,119070.0,119060.0,0.38567021]
[1753238672637,0.453,119070.0,119060.0,0.38567021]
[1753238673256,0.453,119070.0,119060.0,0.65001403]
[1753238673490,0.46849119,119070.0,119060.0,0.81014751]
[1753238673713,0.46849119,119070.0,119060.0,1.07449133]
[1753238673853,0.21849119,119070.0,119060.0,0.2977925]
[1753238674060,0.21849119,119070.0,119060.0,0.21852404]
[1753238674061,0.23528689,119070.0,119060.0,0.21852404]
[1753238674262,0.22688897,119070.0,119060.0,0.38443158]
[1753238674486,0.24368502,119070.0,119060.0,0.18285363]
[1753238674696,0.23528689,119070.0,119060.0,0.18285363]
[1753238674896,0.50208294,119070.0,119060.0,0.19125261]
[1753238675117,0.67005136,119070.0,119060.0,0.35923513]
[1753238675321,0.67005136,119070.0,119060.0,0.36763404]
[1753238675533,0.67005136,119070.0,119060.0,0.37603288]
[1753238675696,0.67005143,119070.0,119060.0,0.37603288]
[1753238675902,0.6616533,119070.0,119060.0,0.36763404]
[1753238676097,0.65325531,119070.0,119060.0,0.23011274]
[1753238676314,0.47688897,119070.0,119060.0,0.38423137]
[1753238676520,0.46849119,119070.0,119060.0,0.38423137]
[1753238676730,0.46849148,119070.0,119060.0,0.38423137]
[1753238676985,0.21849148,119070.0,119060.0,0.38423137]
[1753238677203,0.21849205,119070.0,119060.0,0.38423137]
[1753238677878,0.21849205,119070.0,119060.0,0.98857519]
[1753238678348,0.21849205,119070.0,119060.0,0.98841519]
[1753238678606,0.21849205,119070.0,119060.0,0.98837519]
[1753238679395,0.21849205,119070.0,119060.0,0.80850867]
[1753238679625,0.21849205,119070.0,119060.0,1.07285249]
[1753238680323,0.21849205,119070.0,119060.0,0.80850867]
[1753238680780,0.21849205,119070.0,119060.0,1.07285249]
[1753238681232,0.21849205,119070.0,119060.0,0.92733249]
[1753238681484,0.21849205,119070.0,119060.0,1.07265249]
[1753238682187,0.21849205,119070.0,119060.0,0.66298867]
[1753238682412,0.21851035,119070.0,119060.0,0.80814867]
[1753238682874,0.21851035,119070.0,119060.0,0.64088094]
[1753238683121,0.21851035,119070.0,119060.0,0.80490841]
[1753238683364,0.22690813,119070.0,119060.0,0.73973111]
[1753238683594,0.21851035,119070.0,119060.0,0.74812981]
[1753238683814,0.22690813,119070.0,119060.0,0.74812981]
[1753238684030,0.64487655,119070.0,119060.0,0.73973111]
[1753238684253,0.47690813,119070.0,119060.0,0.73973111]
[1753238684453,0.46851035,119070.0,119060.0,0.73973111]
[1753238685078,0.47690827,119070.0,119060.0,0.73973118]
[1753238685312,0.65535482,119070.0,119060.0,0.19457228]
[1753238685525,0.63855877,119070.0,119060.0,0.37095371]
[1753238685734,0.64824232,119070.0,119060.0,0.37095357]
[1753238685968,0.66377103,119070.0,119060.0,0.37935234]
[1753238686170,0.66377103,119070.0,119060.0,0.37095357]
[1753238686387,0.64697505,119070.0,119060.0,0.37935248]
[1753238686608,0.65537297,119070.0,119060.0,0.37935248]
[1753238686841,0.47060878,119070.0,119060.0,0.33485575]
[1753238687048,0.46852878,119070.0,119060.0,0.37605234]
[1753238687256,0.65329297,119070.0,119060.0,0.36765364]
[1753238687465,0.65329297,119070.0,119060.0,0.37605241]
[1753238688506,0.65329297,119070.0,119060.0,0.36765364]
[1753238689189,0.65329297,119070.0,119060.0,0.22681241]
[1753238689385,0.65329297,119070.0,119060.0,0.37577241]
[1753238689601,0.47692656,119070.0,119060.0,0.38417104]
[1753238689822,0.63776405,119070.0,119060.0,0.37577241]
[1753238690045,0.64616204,119070.0,119060.0,0.38417111]
[1753238690265,0.63776405,119070.0,119060.0,0.38417111]
[1753238690518,0.64616204,119070.0,119060.0,0.37577241]
[1753238690757,0.65456017,119070.0,119060.0,0.3589748]
[1753238690976,0.66503845,119070.0,119060.0,0.36737378]
[1753238691200,0.65664067,119070.0,119060.0,0.1833914]
[1753238691427,0.66503909,119070.0,119060.0,0.17499235]
[1753238691660,0.65982067,119070.0,119060.0,0.02603235]
[1753238691874,0.65982067,119070.0,119060.0,0.1677514]
[1753238692296,0.68382202,119070.0,119060.0,0.15935235]
[1753238692504,0.68382202,119070.0,119060.0,0.15095323]
[1753238692923,0.67542417,119070.0,119060.0,0.15095323]
[1753238693397,0.65982124,119070.0,119060.0,0.00012323]
[1753238693622,0.65862729,119070.0,119060.0,0.14832323]
[1753238694512,1.05649743,119070.0,119060.0,0.00012323]
[1753238694736,1.05649743,119070.0,119060.0,0.14820323]
[1753238694957,0.79215361,119070.0,119060.0,0.14820323]
[1753238695395,0.81586655,119070.0,119060.0,0.14820323]
[1753238695767,0.81386418,119070.0,119060.0,0.14820323]
[1753238695768,0.81586418,119070.0,119060.0,0.14920323]
[1753238695977,1.083208,119070.0,119060.0,0.15000323]
[1753238696336,1.083208,119070.0,119060.0,0.14550836]
[1753238696749,0.81886418,119070.0,119060.0,0.14550836]
[1753238696974,0.19319527,119050.0,119040.0,0.00873689]
[1753238697189,0.18687594,119050.0,119040.0,0.00886011]
[1753238697398,0.18687594,119050.0,119040.0,0.15650011]
[1753238697616,0.19005594,119050.0,119040.0,0.15650011]
[1753238698037,0.4326564,119050.0,119040.0,0.15750011]
[1753238698254,0.42425664,119050.0,119040.0,0.15750011]
[1753238698655,0.42525664,119050.0,119040.0,0.15850011]
[1753238699268,0.54258296,119050.0,119040.0,0.15850011]
[1753238700091,0.82192678,119050.0,119040.0,0.01086011]
[1753238700314,0.83750957,119050.0,119040.0,0.01086011]
[1753238700522,0.42839583,119050.0,119040.0,0.34283157]
[1753238700737,0.26039919,119050.0,119040.0,0.39444172]
[1753238700956,0.26879859,119050.0,119040.0,0.39444172]
[1753238701169,0.26779859,119050.0,119040.0,0.39344179]
[1753238701384,0.25,119050.0,119040.0,0.39553179]
[1753238701592,0.251,119050.0,119040.0,0.33227132]
[1753238701800,0.45985468,119050.0,119040.0,0.33227139]
[1753238702048,0.44205566,119050.0,119040.0,0.34907182]
[1753238702253,0.44845535,119050.0,119040.0,0.35747193]
[1753238702462,0.45045578,119050.0,119040.0,0.34067185]
[1753238702670,0.45445578,119050.0,119040.0,0.34907224]
[1753238702883,0.44005616,119050.0,119040.0,0.1726611]
[1753238703097,0.44005616,119050.0,119040.0,0.33227132]
[1753238703342,0.43365647,119050.0,119040.0,0.15562011]
[1753238703552,0.43365647,119050.0,119040.0,0.32363086]
[1753238703757,0.45045542,119050.0,119040.0,0.35723207]
[1753238703971,0.44205566,119050.0,119040.0,0.35934221]
[1753238704191,0.28245813,119050.0,119040.0,0.35934214]
[1753238704411,0.45885439,119050.0,119040.0,0.36774232]
[1753238704650,0.45885489,119050.0,119040.0,0.34254178]
[1753238704865,0.45985489,119050.0,119040.0,0.34254185]
[1753238705094,0.46825472,119050.0,119040.0,0.35934256]
[1753238705320,0.46825472,119050.0,119040.0,0.33414139]
[1753238705537,0.45985532,119050.0,119040.0,0.33203139]
[1753238705764,0.44305551,119050.0,119040.0,0.35094224]
[1753238706079,0.4514552,119050.0,119040.0,0.35934256]
[1753238706365,0.4514552,119050.0,119040.0,0.36774281]
[1753238706606,0.45985496,119050.0,119040.0,0.35934256]
[1753238706818,0.44305551,119050.0,119040.0,0.35934228]
[1753238707029,0.4514552,119050.0,119040.0,0.36774246]
[1753238707248,0.4514552,119050.0,119040.0,0.35922228]
[1753238707448,0.4514552,119050.0,119040.0,0.34031157]
[1753238707654,0.45985496,119050.0,119040.0,0.34031164]
[1753238708110,0.44305551,119050.0,119040.0,0.34031164]
[1753238708369,0.253,119050.0,119040.0,0.35922193]
[1753238708663,0.253,119050.0,119040.0,0.39494193]
[1753238709518,0.26139919,119050.0,119040.0,0.39494193]
[1753238709743,0.47736348,119050.0,119040.0,0.00886011]
[1753238710013,0.84048608,119050.0,119040.0,0.15546011]
[1753238710233,0.58470385,119050.0,119040.0,0.00886011]
[1753238710445,0.84904767,119050.0,119040.0,0.15542011]
[1753238710657,1.24904767,119050.0,119040.0,0.15542011]
[1753238710866,0.84904767,119050.0,119040.0,0.15542011]
[1753238711075,0.84804767,119050.0,119040.0,0.00886011]
[1753238711285,0.84804767,119050.0,119040.0,0.15538011]
[1753238711499,0.85004767,119050.0,119040.0,0.15538011]
[1753238711717,0.84804767,119050.0,119040.0,0.15538011]
[1753238712142,0.85104767,119050.0,119040.0,0.15538011]
[1753238713017,0.85104767,119050.0,119040.0,0.00886011]
[1753238713232,0.19386016,119040.0,119030.0,0.14395455]
[1753238713449,0.49203398,119040.0,119030.0,0.14395455]
[1753238713675,0.20227615,119030.0,119020.0,0.00465394]
[1753238713904,0.20440615,119030.0,119020.0,0.32933472]
[1753238714145,0.20440615,119030.0,119020.0,0.35670984]
[1753238714146,0.00532,119030.0,119020.0,0.35670984]
[1753238714366,0.00840081,119030.0,119020.0,0.38800984]
[1753238714574,0.02520244,119030.0,119020.0,0.38800984]
[1753238714786,0.19532473,119030.0,119020.0,0.38800991]
[1753238715048,0.1953573,119030.0,119020.0,0.38011136]
[1753238715271,0.21215957,119030.0,119020.0,0.36326839]
[1753238715481,0.20694883,119030.0,119020.0,0.33126486]
[1753238715707,0.1901467,119030.0,119020.0,0.33126479]
[1753238715922,0.20794847,119030.0,119020.0,0.34806804]
[1753238716132,0.4495473,119030.0,119020.0,0.34790804]
[1753238716385,0.45794847,119030.0,119020.0,0.34790804]
[1753238716619,0.45794854,119030.0,119020.0,0.33950645]
[1753238716863,0.45794854,119030.0,119020.0,0.33950652]
[1753238717075,0.45894854,119030.0,119020.0,0.34890818]
[1753238717284,0.45894854,119030.0,119020.0,0.34050652]
[1753238717498,0.45054794,119030.0,119020.0,0.33833652]
[1753238717775,0.27933216,119030.0,119020.0,0.35730963]
[1753238717985,0.27933216,119030.0,119020.0,0.37093795]
[1753238718222,0.27933208,119030.0,119020.0,0.37093795]
[1753238718677,0.252,119030.0,119020.0,0.38945795]
[1753238718894,0.2604006,119030.0,119020.0,0.38945795]
[1753238719111,0.252,119030.0,119020.0,0.38945795]
[1753238719336,0.252,119030.0,119020.0,0.24161795]
[1753238719566,0.252,119030.0,119020.0,0.38957795]
[1753238723296,0.252,119030.0,119020.0,0.72957795]
[1753238724842,0.252,119030.0,119020.0,1.07839907]
[1753238725065,0.002,119030.0,119020.0,1.07839907]
[1753238725976,0.002,119030.0,119020.0,0.81405525]
[1753238726194,0.002,119030.0,119020.0,1.07839907]
[1753238728594,0.001,119030.0,119020.0,1.07839907]
[1753238728812,0.002,119030.0,119020.0,1.08039907]
[1753238729052,0.001,119030.0,119020.0,1.07939907]
[1753238729296,0.002,119030.0,119020.0,1.08039907]
[1753238729530,0.001,119030.0,119020.0,1.07839907]
[1753238729779,0.31711691,119060.0,119050.0,0.20859527]
[1753238730003,0.32551547,119060.0,119050.0,0.35240527]
[1753238730214,0.31711691,119060.0,119050.0,0.35240527]
[1753238730426,0.32551547,119060.0,119050.0,0.35240527]
[1753238730854,0.33604417,119060.0,119050.0,0.35240527]
[1753238731063,0.32764547,119060.0,119050.0,0.33700527]
[1753238731491,0.25213,119060.0,119050.0,0.33700527]
[1753238732122,0.25613,119060.0,119050.0,0.33900527]
[1753238733017,0.26452856,119060.0,119050.0,0.33900527]
[1753238733234,0.54241718,119060.0,119050.0,0.002]
[1753238733463,0.62689448,119060.0,119050.0,0.14812]
[1753238733715,1.22421002,119060.0,119050.0,0.14812]
[1753238734170,0.9598662,119060.0,119050.0,0.002]
[1753238734364,0.9598662,119060.0,119050.0,0.15636]
[1753238734621,1.22421002,119060.0,119050.0,0.15636]
[1753238734838,0.97722659,119060.0,119050.0,0.15636]
[1753238735054,1.24157041,119060.0,119050.0,0.15636]
[1753238735270,1.24157041,119060.0,119050.0,0.002]
[1753238735271,0.97722659,119060.0,119050.0,0.002]
[1753238735485,0.83625041,119060.0,119050.0,0.15608]
[1753238735915,1.23625041,119060.0,119050.0,0.002]
[1753238736135,1.23625041,119060.0,119050.0,0.156]
[1753238736362,0.57190659,119060.0,119050.0,0.156]
[1753238736613,1.17625041,119060.0,119050.0,0.002]
[1753238737073,1.17625041,119060.0,119050.0,0.15592]
[1753238737300,1.17625041,119060.0,119050.0,0.15584]
[1753238737741,1.17625041,119060.0,119050.0,0.002]
[1753238737960,1.17625041,119060.0,119050.0,0.15584]
[1753238738644,1.17625041,119060.0,119050.0,0.002]
[1753238738645,1.24336732,119060.0,119050.0,0.002]
[1753238738862,1.24236732,119060.0,119050.0,0.001]
[1753238739082,1.25214786,119060.0,119050.0,0.001]
[1753238739296,0.23486034,119040.0,119030.0,0.1556]
[1753238739507,0.31933764,119040.0,119030.0,0.1556]
[1753238740513,0.20772596,119030.0,119020.0,0.00308226]
[1753238740596,0.47206978,119030.0,119020.0,0.00308226]
[1753238741059,0.22517498,119030.0,119020.0,0.00308226]
[1753238741287,0.22517498,119030.0,119020.0,0.15916226]
[1753238741510,0.22517498,119030.0,119020.0,0.17508449]
[1753238741743,0.30965228,119030.0,119020.0,0.15916226]
[1753238741975,0.55965228,119030.0,119020.0,0.15916226]
[1753238742201,0.55965228,119030.0,119020.0,0.15920226]
[1753238742422,0.45972596,119030.0,119020.0,0.00308226]
[1753238742648,0.45972596,119030.0,119020.0,0.15964226]
[1753238742891,0.02314689,119030.0,119020.0,0.22009147]
[1753238743144,0.19529249,119050.0,119040.0,0.033]
[1753238743367,0.19319477,119050.0,119040.0,0.04140053]
[1753238743604,0.00839919,119050.0,119040.0,0.21781132]
[1753238743840,0.00839919,119050.0,119030.0,0.34840124]
[1753238743841,0.03360086,119040.0,119030.0,0.34840124]
[1753238744066,0.17641065,119040.0,119030.0,0.19322823]
[1753238744308,0.00839997,119040.0,119030.0,0.20912823]
[1753238744543,0.18479595,119050.0,119040.0,0.00840053]
[1753238744758,0.18481076,119040.0,119030.0,0.02430103]
[1753238744974,0.17641065,119040.0,119030.0,0.21752911]
[1753238745202,0.18481076,119040.0,119030.0,0.21752933]
[1753238745429,0.18481062,119040.0,119030.0,0.21752933]
[1753238745649,0.18481062,119040.0,119030.0,0.22592972]
[1753238745877,0.17639633,119050.0,119040.0,0.19281128]
[1753238745878,0.1763959,119050.0,119040.0,0.19281128]
[1753238746097,0.20159439,119050.0,119040.0,0.0317]
[1753238746318,0.18478041,119060.0,119040.0,0.22491157]
[1753238746544,0.19317953,119060.0,119040.0,0.23331161]
[1753238746774,0.00839933,119050.0,119040.0,0.21651146]
[1753238747206,0.18479544,119050.0,119040.0,0.04850085]
[1753238747214,0.19319498,119050.0,119040.0,0.04010053]
[1753238747450,0.17639604,119050.0,119040.0,0.21651167]
[1753238747686,0.19319477,119050.0,119040.0,0.22491199]
[1753238747922,0.00839919,119050.0,119040.0,0.24171228]
[1753238748163,0.18478055,119060.0,119040.0,0.24171172]
[1753238748406,0.18478013,119060.0,119040.0,0.24171123]
[1753238748638,0.19317862,119060.0,119050.0,0.00839969]
[1753238748885,0.3696,119070.0,119050.0,0.00839976]
[1753238749128,0.00209743,119060.0,119040.0,0.21651076]
[1753238749373,0.00209743,119060.0,119050.0,0.19319527]
[1753238749600,0.38684902,119070.0,119060.0,0.18478034]
[1753238749828,0.38684902,119070.0,119060.0,0.19317897]
[1753238749829,0.203,119070.0,119060.0,0.19317897]
[1753238750065,0.36924,119070.0,119060.0,0.19317897]
[1753238750289,0.203,119070.0,119060.0,0.19317897]
[1753238750525,0.203,119070.0,119060.0,0.20827897]
[1753238750745,0.203,119070.0,119060.0,0.22466123]
[1753238750976,0.203,119070.0,119060.0,0.30913853]
[1753238751434,0.204,119070.0,119060.0,0.30913853]
[1753238752350,0.38876476,119070.0,119060.0,8.226e-05]
[1753238752587,0.38776476,119070.0,119060.0,0.16564226]
[1753238752815,0.38776476,119070.0,119060.0,0.34202383]
[1753238753044,0.38876476,119070.0,119060.0,0.34302383]
[1753238753279,0.38876476,119070.0,119060.0,0.35142281]
[1753238753526,0.38876433,119070.0,119060.0,0.35982165]
[1753238753766,0.22919411,119070.0,119060.0,0.38432035]
[1753238753986,0.21979591,119070.0,119060.0,0.36552281]
[1753238754202,0.21979584,119070.0,119060.0,0.37392158]
[1753238754422,0.21339778,119070.0,119060.0,0.39872021]
[1753238754679,0.205,119070.0,119060.0,0.39872021]
[1753238755756,0.21339778,119070.0,119060.0,0.39872021]
[1753238756265,0.205,119070.0,119060.0,0.60024021]
[1753238757459,0.206,119070.0,119060.0,0.60124021]
[1753238758202,0.21439785,119070.0,119060.0,0.43568021]
[1753238758426,0.5061946,119070.0,119060.0,0.37484226]
[1753238758647,0.46627994,119070.0,119060.0,0.37528226]
[1753238759095,0.46627994,119070.0,119060.0,0.20360226]
[1753238759327,0.39916303,119070.0,119060.0,0.20360226]
[1753238759552,0.39916303,119070.0,119060.0,0.37508226]
[1753238759799,0.39076461,119070.0,119060.0,0.38348138]
[1753238760210,0.39916296,119070.0,119060.0,0.39188043]
[1753238760427,0.39916232,119070.0,119060.0,0.38348138]
[1753238760653,0.41595895,119070.0,119060.0,0.38324138]
[1753238760871,0.39916232,119070.0,119060.0,0.5512239]
[1753238761097,0.4075606,119070.0,119060.0,0.5512239]
[1753238761338,0.39916225,119070.0,119060.0,0.56802193]
[1753238761561,0.39916225,119070.0,119060.0,0.57642077]
[1753238761781,0.39916225,119070.0,119060.0,0.55962295]
[1753238761991,0.41595887,119070.0,119060.0,0.20360226]
[1753238762226,0.40756109,119070.0,119060.0,0.37480226]
[1753238762668,0.40756095,119070.0,119060.0,0.39999941]
[1753238762674,0.39916267,119070.0,119060.0,0.39160043]
[1753238763341,0.39916267,119070.0,119060.0,0.56798193]
[1753238763546,0.39916267,119070.0,119060.0,0.55958295]
[1753238763769,0.39916267,119070.0,119060.0,0.56778193]
[1753238764561,0.39076447,119070.0,119060.0,0.57618084]
[1753238764763,0.39916267,119070.0,119060.0,0.57618084]
[1753238765043,0.39916267,119070.0,119060.0,0.55938295]
[1753238765249,0.39076447,119070.0,119060.0,0.56778193]
[1753238765450,0.39076447,119070.0,119060.0,0.57618077]
[1753238766078,0.39076447,119070.0,119060.0,0.57618084]
[1753238766292,0.39916267,119070.0,119060.0,0.56778193]
[1753238766556,0.39076447,119070.0,119060.0,0.57618084]
[1753238767422,0.39076419,119070.0,119060.0,0.58457926]
[1753238767686,0.37396842,119070.0,119060.0,0.59128021]
[1753238767917,0.38236627,119070.0,119060.0,0.57448267]
[1753238768102,0.39076426,119070.0,119060.0,0.56778151]
[1753238768343,0.39076426,119070.0,119060.0,0.57618021]
[1753238768530,0.39076426,119070.0,119060.0,0.57618028]
[1753238768768,0.39916232,119070.0,119060.0,0.56778151]
[1753238768978,0.39076426,119070.0,119060.0,0.57618028]
[1753238769269,0.38236627,119070.0,119060.0,0.57618028]
[1753238769486,0.39076426,119070.0,119060.0,0.57618028]
[1753238769699,0.38236627,119070.0,119060.0,0.57618028]
[1753238769923,0.39916232,119070.0,119060.0,0.55938253]
[1753238770175,0.39916225,119070.0,119060.0,0.55938253]
[1753238770362,0.39916225,119070.0,119060.0,0.5677813]
[1753238770577,0.39916218,119070.0,119060.0,0.5677813]
[1753238770804,0.38236627,119070.0,119060.0,0.5677813]
[1753238771022,0.206,119070.0,119060.0,0.60077863]
[1753238771232,0.21439785,119070.0,119060.0,0.60077863]
[1753238771461,0.39076426,119070.0,119060.0,0.5839813]
[1753238771688,0.39076426,119070.0,119060.0,0.5677813]
[1753238771910,0.39076426,119070.0,119060.0,0.55938253]
[1753238772135,0.39916239,119070.0,119060.0,0.55938253]
[1753238772347,0.39076426,119070.0,119060.0,0.55938253]
[1753238772569,0.39916239,119070.0,119060.0,0.55938253]
[1753238773023,0.39076426,119070.0,119060.0,0.55938253]
[1753238773239,0.39076426,119070.0,119060.0,0.5677813]
[1753238773461,0.38236627,119070.0,119060.0,0.57617993]
[1753238773679,0.39076419,119070.0,119060.0,0.5828813]
[1753238773894,0.39076419,119070.0,119060.0,0.57448253]
[1753238774120,0.39916232,119070.0,119060.0,0.55938253]
[1753238774362,0.39916232,119070.0,119060.0,0.55938281]
[1753238774582,0.39916225,119070.0,119060.0,0.56778158]
[1753238774805,0.39076419,119070.0,119060.0,0.57618028]
[1753238775024,0.206,119070.0,119060.0,0.58457891]
[1753238775289,0.38236634,119070.0,119060.0,0.58457891]
[1753238775513,0.206,119070.0,119060.0,0.42947891]
[1753238775730,0.38236627,119070.0,119060.0,0.56390158]
[1753238775970,0.38236627,119070.0,119060.0,0.58069891]
[1753238776194,0.206,119070.0,119060.0,0.61299891]
[1753238776464,0.206,119070.0,119060.0,0.61291891]
[1753238777917,0.206,119070.0,119060.0,0.53035621]
[1753238778130,0.206,119070.0,119060.0,0.53045621]
[1753238778350,0.206,119070.0,119060.0,0.69677621]
[1753238779002,0.205,119070.0,119060.0,0.69577621]
[1753238779264,0.206,119070.0,119060.0,0.69677621]
[1753238780521,0.206,119070.0,119060.0,0.53045621]
[1753238780693,0.204,119070.0,119060.0,0.69517621]
[1753238780905,0.204,119070.0,119060.0,0.95952003]
[1753238781110,0.205,119070.0,119060.0,0.96152003]
[1753238781295,0.205,119070.0,119060.0,0.96453003]
[1753238781480,0.205,119070.0,119060.0,0.79881003]
[1753238781875,0.205,119070.0,119060.0,0.69982621]
[1753238782081,0.205,119070.0,119060.0,0.96417003]
[1753238783390,0.205,119070.0,119060.0,0.79881003]
[1753238783595,0.205,119070.0,119060.0,0.69673621]
[1753238784648,0.205,119070.0,119060.0,0.69987621]
[1753238785064,0.205,119070.0,119060.0,0.96422003]
[1753238785272,0.205,119070.0,119060.0,0.98184019]
[1753238786948,0.205,119070.0,119060.0,1.15656019]
[1753238787158,0.205,119070.0,119060.0,1.32100019]
[1753238787581,0.205,119070.0,119060.0,1.03903621]
[1753238787794,0.204,119070.0,119060.0,1.32000019]
[1753238788005,0.203,119070.0,119060.0,1.31736019]
[1753238788225,0.205,119070.0,119060.0,1.32136019]
[1753238788640,0.204,119070.0,119060.0,1.31836019]
[1753238789084,0.204,119070.0,119060.0,0.87559621]
[1753238789295,0.204,119070.0,119060.0,1.32100019]
[1753238790397,0.205,119070.0,119060.0,1.32300019]
[1753238791300,0.205,119070.0,119060.0,1.37139642]
[1753238801683,0.203,119070.0,119060.0,1.20795642]
[1753238801900,0.203,119070.0,119060.0,1.36835642]
[1753238802353,0.203,119070.0,119060.0,1.20795642]
[1753238802574,0.203,119070.0,119060.0,1.36819642]
[1753238803223,0.203,119070.0,119060.0,1.36811642]
[1753238803446,0.203,119070.0,119060.0,1.20795642]
[1753238803656,0.203,119070.0,119060.0,1.36799642]
[1753238803870,0.203,119070.0,119060.0,1.20795642]
[1753238804101,0.203,119070.0,119060.0,1.36783642]
[1753238805633,0.203,119070.0,119060.0,0.87759621]
[1753238805870,0.20611,119070.0,119060.0,1.00185621]
[1753238806097,0.39067842,119070.0,119060.0,0.20760226]
[1753238806319,0.42277476,119070.0,119060.0,0.36692226]
[1753238806539,0.43117311,119070.0,119060.0,0.36684226]
[1753238806969,0.43017311,119070.0,119060.0,0.36484226]